{"text_format":"1","workbook":"xlsx","n_sheets":1,"sheets":["Sheet1"],"not_rendered":{"charts":0,"images":0,"macros":0,"external_links":0,"defined_names":0,"comments":0,"pivot_tables":0},"unopened":[],"bounds":{"document_bytes":16777216,"sheet_cells":100000,"rows_first":2000,"rows_last":500,"rows_between":2000,"halvings":0,"cell_chars":16384,"cell_head_chars":4096},"cells_cut":0,"cells_raw":0,"read":"whole","date_system":"1900"}

{"sheet":"Sheet1","index":0,"n_rows":38,"n_cols":11,"rows_kept":38,"cut":false,"hidden":false,"merged":[[37,0,37,6],[4,10,5,10],[4,7,5,7],[4,8,5,8],[7,8,8,8],[16,0,16,6],[14,0,14,6],[15,0,15,6],[18,0,18,6],[19,0,19,6],[36,0,36,6],[17,0,17,6],[35,0,35,6],[0,0,0,6],[4,3,4,4],[2,4,2,5],[13,0,13,6],[12,0,12,3],[2,2,2,3],[2,0,2,1],[4,6,5,6]]}
["original"]
["Nederlands","English","Deutsch","Français","Español","Português","Slovenščina"]
[{"$f":"IF($E$3=\"Nederlands\",\"EZ-DSR Calculator\",IF($E$3=\"English\",\"EZ-DSR Calculator\",IF($E$3=\"Deutsch\",\"EZ-DSR Calculator\",IF($E$3=\"Français\",\"EZ-DSR Calculator\",IF($E$3=\"Español\",\"EZ-DSR Calculator\",IF($E$3=\"Português\",\"Calculadora EZ-DSR\",IF($E$3=\"Slovenščina\",\"EZ-DSR Kalkulator\")))))))","v":"EZ-DSR Calculator"},null,"v.191119",null,"English"]
[{"$f":"IF($E$3=\"Nederlands\",\"Calibration ratio\",IF($E$3=\"English\",\"Calibration ratio\",IF($E$3=\"Deutsch\",\"Calibration ratio\",IF($E$3=\"Français\",\"Calibration ratio\",IF($E$3=\"Español\",\"Calibration ratio\",IF($E$3=\"Português\",\"Rácio de Calibração\",IF($E$3=\"Slovenščina\",\"Kalibracijsko razmerje\")))))))","v":"Calibration ratio"},null,null,1,"(ml/sec)","(ml/ml)"]
[{"$f":"IF($E$3=\"Nederlands\",\"Volume (L)\",IF($E$3=\"English\",\"Volume (L)\",IF($E$3=\"Deutsch\",\"Volumen (L)\",IF($E$3=\"Français\",\"Volume (L)\",IF($E$3=\"Español\",\"Volumen (L)\",IF($E$3=\"Português\",\"Volume (L)\",IF($E$3=\"Slovenščina\",\"Volumen (L)\")))))))","v":"Volume (L)"},100,null,{"$f":"IF($E$3=\"Nederlands\",\"Aantal dagen tussen metingen\",IF($E$3=\"English\",\"Days between measurements\",IF($E$3=\"Deutsch\",\"Tage zwischen den Messungen\",IF($E$3=\"Français\",\"Jours entre les mesures\",IF($E$3=\"Español\",\"Días entre mediciones\",IF($E$3=\"Português\",\"Dias entre Medições\",IF($E$3=\"Slovenščina\",\"Dni med merjanjem\")))))))","v":"Days between measurements"},null,1,{"$f":"IF($E$3=\"Nederlands\",\"pump setting\",IF($E$3=\"English\",\"pump setting\",IF($E$3=\"Deutsch\",\"pump setting\",IF($E$3=\"Français\",\"pump setting\",IF($E$3=\"Español\",\"pump setting\",IF($E$3=\"Português\",\"Definições Bomba Dosagem\"))))))","v":"pump setting"},{"$f":"IF($E$3=\"Nederlands\",\"Cor. Gewicht (gr)\",IF($E$3=\"English\",\"Cor. Weight (gr)\",IF($E$3=\"Deutsch\",\"Kor. Gewicht (gr)\",IF($E$3=\"Français\",\"Cor. Poids (gr)\",IF($E$3=\"Español\",\"Cor. Peso (gr)\",IF($E$3=\"Português\",\"Peso de Correcção (gr)\",IF($E$3=\"Slovenščina\",\"Popra-vek teža (gr)\")))))))","v":"Cor. Weight (gr)"},"Ca/Kh ratio (native)",null,"SG"]
[{"$f":"IF($E$3=\"Nederlands\",\"Produkt\",IF($E$3=\"English\",\"Product\",IF($E$3=\"Deutsch\",\"Product\",IF($E$3=\"Français\",\"Product\",IF($E$3=\"Español\",\"Product\",IF($E$3=\"Português\",\"Produto\",IF($E$3=\"Slovenščina\",\"Izdelek\")))))))","v":"Product"},{"$f":"IF($E$3=\"Nederlands\",\"Waarde\",IF($E$3=\"English\",\"Value\",IF($E$3=\"Deutsch\",\"Wert\",IF($E$3=\"Français\",\"Valeur\",IF($E$3=\"Español\",\"Valor\",IF($E$3=\"Português\",\"Valor\",IF($E$3=\"Slovenščina\",\"Vred-nost\")))))))","v":"Value"},{"$f":"IF($E$3=\"Nederlands\",\"Doel\",IF($E$3=\"English\",\"Setpoint\",IF($E$3=\"Deutsch\",\"SollWert\",IF($E$3=\"Français\",\"But\",IF($E$3=\"Español\",\"punto fijo\",IF($E$3=\"Português\",\"Objec-tivo\",IF($E$3=\"Slovenščina\",\"Končna vrednost\")))))))","v":"Setpoint"}," dkh / ppm",{"$f":"IF($E$3=\"Nederlands\",\"Correctie / start (ml)\",IF($E$3=\"English\",\"Correction (ml)\",IF($E$3=\"Deutsch\",\"Korrektur (ml)\",IF($E$3=\"Français\",\"Correction (ml)\",IF($E$3=\"Español\",\"Corrección (ml)\",IF($E$3=\"Português\",\"Correcção (ml)\",IF($E$3=\"Slovenščina\",\"Popravek (ml)\")))))))","v":"Correction (ml)"},{"$f":"IF($E$3=\"Nederlands\",\"Dagelijks (ml)\",IF($E$3=\"English\",\"Daily (ml)\",IF($E$3=\"Deutsch\",\"Täglich (ml)\",IF($E$3=\"Français\",\"Quotidien (ml)\",IF($E$3=\"Español\",\"Diario (ml)\",IF($E$3=\"Português\",\"Consumo Diário (ml)\",IF($E$3=\"Slovenščina\",\"Dnevno (ml)\")))))))","v":"Daily (ml)"},null,{"$f":"IF($E$3=\"Nederlands\",\"Liters\",IF($E$3=\"English\",\"Liters\",IF($E$3=\"Deutsch\",\"Liter\",IF($E$3=\"Français\",\"litres\",IF($E$3=\"Español\",\"Litros\")))))","v":"Liters"}]
["EZ-Buffer","x",9,{"$f":"IF($B$7=\"x\",0.24,C7-B7)","v":0.24},{"$f":"($B$5/100)*$D$7*16.7","v":4.008},{"$f":"+$E$7/$F$5","v":4.008},{"$f":"F7/$D$4","v":4.008},{"$f":"E7*K7","v":4.3727279999999995},{"$f":"D8/D7","v":5.8},null,1.091]
["EZ-Calcium","x",440,{"$f":"IF($B$8=\"x\",(5.8*D7),C8-B8)","v":1.3919999999999999},{"$f":"($B$5/100)*$D$8*0.578","v":0.80457599999999985},{"$f":"+$E$8/$F$5","v":0.80457599999999985},{"$f":"F8/$D$4","v":0.80457599999999985},1.0982462399999997,"Buf/Cal ratio",null,1.365]
["EZ-Trace","max.",{"$f":"6*(B5/100)","v":6},"-",{"$f":"E8/2","v":0.40228799999999992},{"$f":"F8/2","v":0.40228799999999992},0.40228799999999992,0.48033187199999988,null,null,1.194]
["PO4+",0,null,7.0000000000000001E-3,{"$f":"($B$5/100)*(D10-B10)*100*0.1","v":7.0000000000000007E-2},{"$f":"+E10","v":7.0000000000000007E-2},7.0000000000000007E-2,0]
["NO3+ ",0,null,0.1,{"$f":"($B$5/100)*(D11-B11)*1.44","v":0.14399999999999999},{"$f":"+E11","v":0.14399999999999999},0.14399999999999999,0]
["EZ-Carbon ","max.",{"$f":"($B$5/100)*$E$35","v":12.383472844799998},"D3",{"$f":"IF(D12=\"D1\",($B$5/100)*E21,IF(D12=\"D2\",($B$5/100)*E22,IF(D12=\"D3\",($B$5/100)*E23,IF(D12=\"D4\",($B$5/100)*E24,IF(D12=\"D5\",($B$5/100)*E25,IF(D12=\"D6\",($B$5/100)*E26,IF(D12=\"D7\",($B$5/100)*E27,IF(D12=\"D8\",($B$5/100)*E28,IF(D12=\"D9\",($B$5/100)*E29,IF(D12=\"D10\",($B$5/100)*E30,IF(D12=\"D11\",($B$5/100)*E31,IF(D12=\"D12\",($B$5/100)*E32,IF(D12=\"D13\",($B$5/100)*E33,IF(D12=\"D14\",($B$5/100)*E34,IF(D12=\"D15\",($B$5/100)*E35)))))))))))))))","v":1.44},{"$f":"+E12","v":1.44},1.44,1.4726879999999998,{"$f":"E7/E8","v":4.9815057868989392},null,1.0226999999999999]
["Amino/C (weekly dose)",null,null,null,{"$f":"(B5/100)*1","v":1},{"$f":"+E13","v":1},"ml"]
[{"$f":"IF($E$3=\"Nederlands\",\"indien nodig, start dosering berekenen door bij waarde * in te vullen. Correcties en (dagelijks)verbruik berekenen door de gemeten waarde en het aantal dagen vanaf de laatste meting in te vullen. \",IF($E$3=\"English\",\"When required, calculate startdosing by typing x  at Value. Corrections and (daily) consumption can be calculated by submitting the measured value and the day between measurements.\",IF($E$3=\"Deutsch\",\"Berechnen Sie bei Bedarf die Startdosierung, indem Sie x bei Wert eingeben. Korrekturen und (Tages-) Verbrauch können berechnet werden, indem der Messwert und der Tag zwischen den Messungen übermittelt werden.\",IF($E$3=\"Français\",\"Au besoin, calculez le début de la dose en tapant x comme valeur. Les corrections et la consommation (journalière) peuvent être calculées en soumettant la valeur mesurée et le jour entre les mesures.\",IF($E$3=\"Español\",\"Cuando sea necesario, calcule la dosificación inicial escribiendo x en Value. Las correcciones y el consumo (diario) pueden calcularse enviando el valor medido y el día entre mediciones.\",IF($E$3=\"Português\",\"Quando necessário, calcule a dose inicial digitando x em Valor. Valores de correcção e consumo diário, podem ser calculados usando os valores medidos(resultado do teste de água) e os dias entre medições.\",IF($E$3=\"Slovenščina\",\"Po potrebi izračunajte začetno odmerjanje tako, da vtipkate x pri vrednosti. Popravke in (dnevno) porabo lahko izračunate tako, da dodate izmerjeno vrednost in dan med meritvami.\")))))))","v":"When required, calculate startdosing by typing x  at Value. Corrections and (daily) consumption can be calculated by submitting the measured value and the day between measurements."}]
[{"$f":"IF($E$3=\"Nederlands\",\"EZ Buffer/EZCalcium ratio = 5:1 (ml). Deze verhouding kan aangepast worden aan het werkelijk verbruik.\",IF($E$3=\"English\",\"EZ Buffer / EZCalcium ratio = 5:1 (ml). This ratio can be adjusted to the actual consumption.\",IF($E$3=\"Deutsch\",\"EZ-Buffer / EZCalcium Verhältnis = 5:1 (ml). Dieses Verhältnis kann an den tatsächlichen Verbrauch angepasst werden.\",IF($E$3=\"Français\",\"Rapport tampon EZ / EZCalcium = 5:1 (ml). Ce ratio peut être ajusté à la consommation réelle.\",IF($E$3=\"Español\",\"EZ Buffer / EZCalcium ratio = 5:1 (ml). Esta relación se puede ajustar al consumo real.\",IF($E$3=\"Português\",\"EZ Buffer / EZ Calcium ratio = 5:1(ml). Este rácio pode ser ajustado tendo em conta o atual consumo. \",IF($E$3=\"Slovenščina\",\"Razmerje EZ Buffer / EZ Calcium = 5: 1 (ml). To razmerje je mogoče prilagoditi dejanski porabi.\")))))))","v":"EZ Buffer / EZCalcium ratio = 5:1 (ml). This ratio can be adjusted to the actual consumption."}]
[{"$f":"IF($E$3=\"Nederlands\",\"EZ-Trace = 50% van EZ-Calcium. (of werkelijk verbruik) \",IF($E$3=\"English\",\"EZ-Trace = 50% of EZ-Calcium. (or actual consumption)\",IF($E$3=\"Deutsch\",\"EZ-Trace = 50% oder EZ-Calcium. (oder tatsächlicher Verbrauch)\",IF($E$3=\"Français\",\"EZ-Trace = 50% ou EZ-Calcium. (ou consommation réelle)\",IF($E$3=\"Español\",\"EZ-Trace = 50% o EZ-Calcium. (o consumo real)\",IF($E$3=\"Português\",\"EZ-Trace = 50% ou EZ-Cálcio. (ou consumo real)\",IF($E$3=\"Slovenščina\",\"EZ-sled = 50% ali EZ-kalcij. (ali dejanska poraba)\")))))))","v":"EZ-Trace = 50% of EZ-Calcium. (or actual consumption)"}]
[{"$f":"IF($E$3=\"Nederlands\",\"(1) Verspreid de geadviseerde correcties over meerdere dagen. (2) Vermeerdert de huidige dosering met de berekende dagelijks dosering.\",IF($E$3=\"English\",\"(1) Spread the recommended corrections over several days. (2) Increase the current dose by the calculated daily dose.\",IF($E$3=\"Deutsch\",\"(1) Verteilen Sie die empfohlenen Korrekturen auf mehrere Tage. (2) Erhöhen Sie die aktuelle Dosis um die berechnete Tagesdosis.\",IF($E$3=\"Français\",\"(1) Répartissez les corrections recommandées sur plusieurs jours. (2) Augmentez la dose actuelle de la dose quotidienne calculée.\",IF($E$3=\"Español\",\"(1) Extienda las correcciones recomendadas durante varios días. (2) Aumente la dosis actual en la dosis diaria calculada.\",IF($E$3=\"Português\",\"(1) Espalhe as correções recomendadas por vários dias. (2) Aumente a dose atual pela dose diária calculada.\",IF($E$3=\"Slovenščina\",\"(1) Priporočljive popravke razmažite po več dneh. (2) Povečajte trenutni odmerek za izračunani dnevni odmerek.\")))))))","v":"(1) Spread the recommended corrections over several days. (2) Increase the current dose by the calculated daily dose."}]
[{"$f":"IF($E$3=\"Nederlands\",\"Correcties brengen de waarden op peil en kunnen het eenvoudigst met FullDSR producten worden uitgevoerd.\",IF($E$3=\"English\",\"Corrections bring the values up to date and are easiest to do with FullDSR products.\",IF($E$3=\"Deutsch\",\"Korrekturen bringen die Werte auf den neuesten Stand und sind mit FullDSR-Produkten am einfachsten durchzuführen.\",IF($E$3=\"Français\",\"Les corrections apportent les valeurs à jour et sont plus faciles à faire avec les produits FullDSR.\",IF($E$3=\"Español\",\"Las correcciones actualizan los valores y son más fáciles de hacer con los productos FullDSR.\",IF($E$3=\"Português\",\"As correções atualizam os valores e são mais fáceis de fazer com os produtos FullDSR.\",IF($E$3=\"Slovenščina\",\"Popravki posodabljajo vrednosti in jih je najlažje narediti pri izdelkih FullDSR.\")))))))","v":"Corrections bring the values up to date and are easiest to do with FullDSR products."}]
[{"$f":"IF($E$3=\"Nederlands\",\"EZ-Carbon dosering opvoeren (D1-15), totdat PO4 en NO3 onder controle zijn. Verlaagd de dosering als het doel bereikt is. (Maak gebruik CarbonVS indien PO4 onmeetbaar is).\",IF($E$3=\"English\",\"Increase EZ-Carbon dosage (D1-15) until PO4 and NO3 are under control. Decrease when target is reached. (Use CarbonVS if PO4 is immeasurable).\",IF($E$3=\"Deutsch\",\"Erhöhen Sie die EZ-Carbon Dosierung (D1-15), bis PO4 und NO3 unter Kontrolle sind. (Verwenden Sie CarbonVS, wenn PO4 nicht messbar ist).\",IF($E$3=\"Français\",\"Augmentez la dose de EZ-Carbon (D1-15) jusqu'à ce que PO4 et NO3 soient sous contrôle. (Utilisez CarbonVS si PO4 est incommensurable).\",IF($E$3=\"Español\",\"Aumente la dosis de EZ-Carbon (D1-15) hasta que PO4 y NO3 estén bajo control. (Use CarbonVS si PO4 no se puede medir).\",IF($E$3=\"Português\",\"Incremente a dosagem de EZ-Carbon (D1-15) até PO4 e NO3 estarem sob controlo. Decremente o valor da dosagem assim que atingir o objectivo. (Use CarbonVS se PO4 for incomensurável). \",IF($E$3=\"Slovenščina\",\"Povečajte odmerek EZ-Carbon (D1-15), dokler nista PO4 in NO3 pod nadzorom. Zmanjšajte, ko je cilj dosežen. (Uporabite CarbonVS, če je PO4 neizmerljiv).\")))))))","v":"Increase EZ-Carbon dosage (D1-15) until PO4 and NO3 are under control. Decrease when target is reached. (Use CarbonVS if PO4 is immeasurable)."}]
[{"$f":"IF($E$3=\"Nederlands\",\"Calibration ratio is om instelling te berekenen die afwijken van de 1:1 ml/ml of ml/s verhouding.\",IF($E$3=\"English\",\"Calibration ratio is to calculate setting that deviate from the 1:1 ml /ml or ml /s ratio.\",IF($E$3=\"Deutsch\",\"Das 'Calibration ratio' dient zur Berechnung der Einstellung, die von dem Verhältnis 1:1 ml / ml oder ml /s abweicht.\",IF($E$3=\"Français\",\"Le 'Calibration ratio' consiste à calculer un réglage qui s'écarte du rapport 1:1 ml / ml ou ml /s.\",IF($E$3=\"Español\",\"'Calibration ratio' es calcular una configuración que se desvía de la relación 1:1 ml /ml o ml /s.\",IF($E$3=\"Português\",\"O rácio de calibração é calculado através do relação 1:1 ml/ml ou ml/s \",IF($E$3=\"Slovenščina\",\"Kalibracijsko razmerje je izračunavanjedoziranj, ki odstopajo od razmerja 1:1 ml/ml ali ml/s.\")))))))","v":"Calibration ratio is to calculate setting that deviate from the 1:1 ml /ml or ml /s ratio."}]
[null,null,null,"D1",1]
[null,null,null,"D2",{"$f":"E21*1.2","v":1.2}]
[null,null,null,"D3",{"$f":"E22*1.2","v":1.44}]
[null,null,null,"D4",1.728]
[null,null,null,"D5",2]
[null,null,null,"D6",2.4]
[null,null,null,"D7",2.88]
[null,null,null,"D8",3.456]
[null,null,null,"D9",4.1471999999999998]
[null,null,null,"D10",4.9766399999999997]
[null,null,null,"D11",5.9719679999999995]
[null,null,null,"D12",7.1663615999999992]
[null,null,null,"D13",8.5996339199999987]
[null,null,null,"D14",10.319560703999999]
[null,null,null,"D15",12.383472844799998]
[{"$f":"IF($E$3=\"Nederlands\",\"De EZ calculator is niet noodzakelijk, maar kan gebruikt worden om  (start) doseringen  te berekenen\",IF($E$3=\"English\",\"The EZ calculator is not necessary, but can be used to calculate (start) dosages\",IF($E$3=\"Deutsch\",\"Der EZ-Rechner ist nicht notwendig, kann aber zur Berechnung von (Start-) Dosierungen verwendet werden\",IF($E$3=\"Français\",\"La calculatrice EZ n'est pas nécessaire, mais peut être utilisée pour calculer (démarrer) des dosages\",IF($E$3=\"Español\",\"La calculadora EZ no es necesaria, pero se puede usar para calcular (comenzar) las dosis\",IF($E$3=\"Português\",\"A calculadora EZ não é extritamente necessária, mas poderá ser utilizada para calcular as dosagens de arranque. \",IF($E$3=\"Slovenščina\",\"EZ Kalkulator ni potreben, vendar ga je mogoče uporabiti za izračun (začetnih) odmerkov\")))))))","v":"The EZ calculator is not necessary, but can be used to calculate (start) dosages"}]
[{"$f":"IF($E$3=\"Nederlands\",\"Verplicht lezen\",IF($E$3=\"English\",\"Mandatory reading\",IF($E$3=\"Deutsch\",\"Pflichtlektüre\",IF($E$3=\"Français\",\"Lecture obligatoire\",IF($E$3=\"Español\",\"Lectura obligatoria\",IF($E$3=\"Português\",\"Leitura obrigatória\",IF($E$3=\"Slovenščina\",\"Obvezno branje\")))))))","v":"Mandatory reading"}]
[{"$f":"IF($E$3=\"Nederlands\",\"EZ Calculator 2.0 discussie topic\",IF($E$3=\"English\",\"EZ Calculator 2.0 discussion topic\",IF($E$3=\"Deutsch\",\"Diskussionsthema zu EZ Calculator 2.0\",IF($E$3=\"Français\",\"Sujet de discussion EZ Calculator 2.0\",IF($E$3=\"Español\",\"Tema de discusión de EZ Calculator 2.0\",IF($E$3=\"Português\",\"EZ Calculator 2.0 Forúm de Discussão\",IF($E$3=\"Slovenščina\",\"EZ Kalkulator 2.0 tema na Forumu\")))))))","v":"EZ Calculator 2.0 discussion topic"}]